lending/lending_fUSD_20241229
["ID","MTS","AMOUNT","RATE_DAILY","PERIOD"]
[347117590,1735505445178,-500.0,0.00016827,2]
[347117591,1735505445188,-500.0,0.00016827,2]
[347117592,1735505445197,-500.0,0.00016827,2]
[347117593,1735505445207,-500.0,0.00016827,2]
[347117594,1735505445403,-500.0,0.00016827,2]
[347117595,1735505445415,-303.95,0.00016827,2]
[347117596,1735505445425,-500.0,0.00016827,2]
[347117597,1735505445435,-606.08,0.00016827,2]
[347117598,1735505445445,-517.47,0.00016827,2]
[347117599,1735505445454,-500.0,0.00016827,2]
[347117600,1735505445463,-500.0,0.00016827,2]
[347117601,1735505445474,-500.0,0.00016827,2]
[347117602,1735505445483,-500.0,0.00016827,2]
[347117603,1735505445499,-500.0,0.00016827,2]
[347117604,1735505445508,-500.0,0.00016827,2]
[347117605,1735505445518,-500.0,0.00016827,2]
[347117606,1735505445528,-201.25,0.00016827,2]
[347117607,1735505445538,-500.0,0.00016827,2]
[347117608,1735505445547,-500.0,0.00016827,2]
[347117609,1735505445557,-500.0,0.00016827,2]
[347117610,1735505445567,-500.0,0.00016827,2]
[347117611,1735505445576,-500.0,0.00016827,2]
[347117612,1735505445586,-500.0,0.00016828,2]
[347117613,1735505445595,-500.0,0.00016828,2]
[347117614,1735505445605,-526.3,0.00016828,2]
[347117615,1735505445615,-500.0,0.00016828,2]
[347117616,1735505445624,-500.0,0.00016828,2]
[347117617,1735505445637,-500.0,0.00016828,2]
[347117618,1735505445646,-500.0,0.00016828,2]
[347117619,1735505445656,-500.0,0.00016828,2]
[347117620,1735505445665,-500.0,0.00016828,2]
[347117621,1735505445675,-500.0,0.00016828,2]
[347117622,1735505445684,-500.0,0.00016828,2]
[347117623,1735505445693,-500.0,0.00016828,2]
[347117624,1735505445705,-500.0,0.00016828,2]
[347117625,1735505445714,-500.0,0.00016828,2]
[347117626,1735505445723,-500.0,0.00016828,2]
[347117627,1735505445732,-500.0,0.00016828,2]
[347117628,1735505445741,-421.76,0.00016828,2]
[347117629,1735505445750,-500.0,0.00016828,2]
[347117630,1735505445760,-500.0,0.00016828,2]
[347117631,1735505445769,-500.0,0.00016828,2]
[347117632,1735505445778,-500.0,0.00016828,2]
[347117633,1735505445787,-500.0,0.00016828,2]
[347117634,1735505445797,-500.0,0.00016828,2]
[347117635,1735505445806,-571.45,0.00016828,2]
[347117636,1735505445816,-500.0,0.00016828,2]
[347117637,1735505445825,-500.0,0.00016828,2]
[347117638,1735505445834,-256.12,0.00016828,2]
[347117639,1735505445843,-368.82,0.00016828,2]
[347117640,1735505445853,-262.14,0.00016828,2]
[347117641,1735505445862,-2664.34039,0.00016829,2]
[347117642,1735505445871,-4233.1020807,0.0001683,2]
[347117643,1735505445881,-6221.3348205,0.00016841,2]
[347117644,1735505445890,-37762.1837068,0.00016853,2]
[347117645,1735505445900,-552.8527,0.000169,2]
[347117646,1735505445909,-879.9153,0.00016905,2]
[347117647,1735505445920,-46356.04319763,0.00017,2]
[347117651,1735505446399,-500.0,0.00016827,2]
[347117652,1735505446409,-29222.5,0.00017,2]
[347117653,1735505446421,-530.79999454,0.00017,2]
[347117654,1735505446433,-325.91,0.00017,2]
[347117655,1735505446445,-33406.00534011,0.00017,2]
[347117656,1735505446455,-1251.25454353,0.00017,2]
[347117657,1735505446465,-500.0,0.00017073,2]
[347117658,1735505446475,-500.0,0.00017073,2]
[347117659,1735505446484,-500.0,0.00017073,2]
[347117660,1735505446494,-199.63,0.00017073,2]
[347117661,1735505446504,-500.0,0.00017073,2]
[347117662,1735505446514,-500.0,0.00017073,2]
[347117663,1735505446524,-500.0,0.00017073,2]
[347117664,1735505446533,-500.0,0.00017073,2]
[347117665,1735505446542,-500.0,0.00017073,2]
[347117666,1735505446552,-580.23,0.00017073,2]
[347117667,1735505446562,-500.0,0.00017073,2]
[347117668,1735505446571,-500.0,0.00017073,2]
[347117669,1735505446581,-500.0,0.00017073,2]
[347117670,1735505446590,-500.0,0.00017073,2]
[347117672,1735505446599,-500.0,0.00017073,2]
[347117673,1735505446608,-500.0,0.00017073,2]
[347117674,1735505446618,-500.0,0.00017073,2]
[347117675,1735505446627,-500.0,0.00017073,2]
[347117676,1735505446637,-500.0,0.00017073,2]
[347117678,1735505446646,-500.0,0.00017073,2]
[347117679,1735505446656,-165.12,0.00017073,2]
[347117680,1735505446666,-500.0,0.00017073,2]
[347117681,1735505446675,-500.0,0.00017073,2]
[347117682,1735505446684,-278.93,0.00017073,2]
[347117683,1735505446693,-210.10041287,0.00017073,2]
[347117684,1735505446705,-289.89958713,0.00017073,2]
[347117686,1735505446715,-158.01,0.00017073,2]
[347117687,1735505446725,-500.0,0.00017073,2]
[347117688,1735505446734,-625.96,0.00017073,2]
[347117689,1735505446744,-500.0,0.00017073,2]
[347117690,1735505446753,-640.61,0.00017073,2]
[347117691,1735505446763,-500.0,0.00017073,2]
[347117692,1735505446772,-500.0,0.00017073,2]
[347117693,1735505446781,-500.0,0.00017073,2]
[347117694,1735505446791,-598.94,0.00017073,2]
[347117695,1735505446800,-500.0,0.00017073,2]
[347117696,1735505446809,-500.0,0.00017073,2]
[347117697,1735505446818,-500.0,0.00017073,2]
[347117698,1735505446827,-500.0,0.00017073,2]
[347117699,1735505446836,-500.0,0.00017073,2]
[347117700,1735505446845,-500.0,0.00017073,2]
[347117701,1735505446855,-604.84,0.00017073,2]
[347117702,1735505446864,-543.01,0.00017073,2]
[347117703,1735505446873,-362.33041287,0.00017073,2]
[347117704,1735505446885,-161.77775156,0.00017073,2]
[347117705,1735505446895,-330.62724844,0.00017073,2]
[347117706,1735505446906,-169.37275156,0.00017073,2]
[347117707,1735505446916,-500.0,0.00017073,2]
[347117708,1735505446926,-500.0,0.00017073,2]
[347117709,1735505446935,-500.0,0.00017073,2]
[347117710,1735505446944,-500.0,0.00017073,2]
[347117711,1735505446953,-500.0,0.00017073,2]
[347117712,1735505446964,-500.0,0.00017073,2]
[347117713,1735505446974,-500.0,0.00017073,2]
[347117714,1735505446983,-500.0,0.00017073,2]
[347117715,1735505446993,-500.0,0.00017073,2]
[347117716,1735505447003,-500.0,0.00017073,2]
[347117717,1735505447012,-500.0,0.00017073,2]
[347117718,1735505447021,-500.0,0.00017073,2]
[347117719,1735505447030,-500.0,0.00017073,2]
[347117720,1735505447040,-79.70936444,0.00017073,2]
[347117721,1735505447056,-420.29063556,0.00017073,2]
[347117722,1735505447066,-142.3816504,0.00017073,2]
[347117723,1735505447078,-357.6183496,0.00017073,2]
[347117724,1735505447089,-314.2816504,0.00017073,2]
[347117725,1735505447102,-185.7183496,0.00017073,2]
[347117726,1735505447111,-268.95,0.00017073,2]
[347117727,1735505447122,-45.3316504,0.00017073,2]
[347117728,1735505447137,-454.6683496,0.00017073,2]
[347117729,1735505447146,-155.5,0.00017073,2]
[347117730,1735505447157,-433.26,0.00017073,2]
[347117731,1735505447167,-105.9291254,0.00017073,2]
[347117732,1735505447178,-389.3708746,0.00017073,2]
[347117733,1735505447187,-300.0,0.00017083,2]
[347117734,1735505447197,-500.0,0.00017083,2]
[347117735,1735505447207,-500.0,0.00017099,2]
[347117736,1735505447217,-500.0,0.00017099,2]
[347117737,1735505447226,-500.0,0.00017099,2]
[347117738,1735505447236,-767.15,0.00017099,2]
[347117739,1735505447245,-500.0,0.00017099,2]
[347117740,1735505447254,-500.0,0.00017099,2]
[347117741,1735505447263,-674.05,0.00017099,2]
[347117742,1735505447273,-500.0,0.00017099,2]
[347117743,1735505447282,-500.0,0.00017099,2]
[347117744,1735505447291,-319.305984,0.00017099,2]
[347117745,1735505447301,-2384.17,0.00017099,2]
[347117746,1735505447311,-500.0,0.00017099,2]
[347117747,1735505447320,-500.0,0.00017099,2]
[347117748,1735505447329,-500.0,0.00017099,2]
[347117749,1735505447338,-500.0,0.00017099,2]
[347117750,1735505447347,-2082.79,0.00017099,2]
[347117751,1735505447356,-500.0,0.00017099,2]
[347117752,1735505447365,-500.0,0.00017099,2]
[347117753,1735505447375,-500.0,0.00017099,2]
[347117754,1735505447385,-500.0,0.00017099,2]
[347117755,1735505447395,-500.0,0.00017099,2]
[347117756,1735505447404,-500.0,0.00017099,2]
[347117757,1735505447413,-500.0,0.00017099,2]
[347117758,1735505447422,-242.77104448,0.00017099,2]
[347117759,1735505610248,157.47,0.00010137,2]
[347117760,1735505946809,500.0,0.00017399,120]
[347117761,1735505947421,500.0,0.00017427,120]
[347117762,1735505947709,389.6,0.00017454,120]
[347117766,1735506632418,-244.13,0.00011871,2]
[347117767,1735506632430,-450.0,0.00012,2]
[347117768,1735506632441,-176.92,0.00012232,2]
[347117769,1735506632454,-517.7,0.00012941,2]
[347117770,1735506632465,-244.13,0.00013058,2]
[347117771,1735506632477,-339.0,0.00013233,2]
[347117772,1735506632488,-614.2593352,0.00013599,2]
[347117773,1735506632517,-1782.57,0.00013599,2]
[347117774,1735506632583,-319.16145846,0.00013599,2]
[347117775,1735506632599,-166.59,0.00013699,2]
[347117776,1735506632610,-500.0,0.00014,2]
[347117777,1735506632621,-1530.19144332,0.00014145,2]
[347117778,1735506632635,-1185.79935033,0.00014145,2]
[347117779,1735506632645,-244.13,0.00014245,2]
[347117780,1735506632657,-74.00664967,0.00014728,2]
[347117781,1735506632671,-278.94335033,0.00014728,2]
[347117782,1735506632682,-163.33,0.00014745,2]
[347117783,1735506632692,-200.0,0.00014785,2]
[347117784,1735506632703,-250.0,0.00014854,2]
[347117785,1735506632714,-155.41,0.00014925,2]
[347117786,1735506632725,-250.0,0.00015122,2]
[347117787,1735506632736,-250.0,0.00015188,2]
[347117788,1735506632747,-47.68321552,0.00015205,2]
[347117789,1735506632767,-470.01678448,0.00015205,2]
[347117790,1735506632778,-519.62,0.00015271,2]
[347117791,1735506632789,-1376.52,0.00015271,2]
[347117792,1735506632799,-244.13,0.00015432,2]
[347117793,1735506632811,-28.57942947,0.00015657,2]
[347117794,1735506632824,-362.94287197,0.00015657,2]
[347117795,1735506632859,-46.79769856,0.00015657,2]
[347117796,1735506632870,-500.0,0.00015686,2]
[347117797,1735506632881,-300.0,0.00015689,2]
[347117798,1735506632892,-741.37,0.0001569,2]
[347117799,1735506632902,-200.0,0.00015717,2]
[347117800,1735506632912,-6117.34958052,0.00015718,2]
[347117802,1735506638304,-11926.46638547,0.00015718,2]
[347117803,1735506638465,-1471.50100292,0.00015718,2]
[347117804,1735506638522,-426.34,0.00015718,2]
[347117805,1735506638631,-1670.48303109,0.00015718,2]
[347117806,1735506638641,-176.44,0.00015906,2]
[347117807,1735506638650,-13.12049017,0.00016,2]
[347117838,1735506640364,-536.87950983,0.00016,2]
[347117839,1735506640374,-533.40982703,0.00016398,2]
[347117840,1735506640383,-1476.39561214,0.000164,2]
[347117841,1735506640394,-451.5099872,0.000164,2]
[347117842,1735506640475,-3072.09440066,0.000164,2]
[347117843,1735506640485,-176.13497658,0.000164,2]
[347117844,1735506640495,-6358.18174344,0.000164,2]
[347117845,1735506640504,-6358.18174339,0.00016402,2]
[347117846,1735506640514,-6358.18174339,0.00016404,2]
[347117847,1735506640523,-11018.94735635,0.0001642,2]
[347117848,1735506640532,-544.59805868,0.0001642,2]
[347117849,1735506640542,-676.05114348,0.00016497,2]
[347117850,1735506640551,-481.79852131,0.00016498,2]
[347117851,1735506640559,-500.0,0.00016498,2]
[347117852,1735506640569,-500.0,0.00016498,2]
[347117853,1735506640578,-500.0,0.00016498,2]
[347117854,1735506640588,-500.0,0.00016498,2]
[347117855,1735506640602,-500.56112312,0.00016498,2]
[347117856,1735506640611,-500.0,0.00016498,2]
[347117857,1735506640620,-571.58902946,0.00016498,2]
[347117858,1735506640629,-500.0,0.00016498,2]
[347117859,1735506640639,-500.0,0.00016498,2]
[347117860,1735506640648,-500.0,0.00016498,2]
[347117861,1735506640657,-500.0,0.00016498,2]
[347117862,1735506640667,-500.0,0.00016498,2]
[347117863,1735506640676,-500.0,0.00016498,2]
[347117864,1735506640686,-401.1394651,0.00016498,2]
[347117865,1735506640695,-500.0,0.00016498,2]
[347117866,1735506640703,-500.0,0.00016498,2]
[347117867,1735506640712,-500.0,0.00016498,2]
[347117868,1735506640722,-500.0,0.00016498,2]
[347117869,1735506640731,-500.0,0.00016498,2]
[347117870,1735506640740,-500.0,0.00016498,2]
[347117871,1735506640749,-500.0,0.00016498,2]
[347117872,1735506640758,-500.0,0.00016498,2]
[347117873,1735506640767,-500.0,0.00016498,2]
[347117874,1735506640776,-500.0,0.00016498,2]
[347117875,1735506640785,-500.0,0.00016498,2]
[347117876,1735506640795,-500.0,0.00016498,2]
[347117877,1735506640804,-622.22542414,0.00016498,2]
[347117878,1735506640813,-499.99999999,0.00016498,2]
[347117879,1735506640822,-36500.69057759,0.00016499,7]
[347117880,1735506640834,-489.4,0.00016499,7]
[347117882,1735506640848,-4167.24986634,0.00016499,7]
[347117883,1735506640859,-552.63338146,0.00016499,7]
[347117884,1735506640870,-421.45769997,0.00016499,7]
[347117885,1735506640881,-1881.7118587,0.00016499,7]
[347117886,1735506640987,-6358.18174339,0.00016407,2]
[347117887,1735506640997,-953.55679414,0.00016499,7]
[347117888,1735506641006,-500.0,0.00016499,2]
[347117889,1735506641016,-606.53,0.00016499,2]
[347117890,1735506641025,-728.2931434,0.00016499,2]
[347117891,1735506641036,-712.5805283,0.00016499,2]
[347117892,1735506641127,-491.2881889,0.00016499,2]
[347117893,1735506641138,-452.70350566,0.00016499,2]
[347117894,1735506641149,-2124.94160717,0.00016499,2]
[347117895,1735506641169,-215.91302657,0.00016499,2]
[347117896,1735506641178,-476.73697243,0.00016499,2]
[347117897,1735506641188,-23.26302757,0.00016499,2]
[347117898,1735506641197,-500.0,0.00016499,2]
[347117899,1735506641206,-500.0,0.00016499,2]
[347117900,1735506641215,-81.33697743,0.00016499,2]
[347117901,1735506641226,-418.66302257,0.00016499,2]
[347117902,1735506641235,-126.43697743,0.00016499,2]
[347117903,1735506641245,-373.56302257,0.00016499,2]
[347117904,1735506641254,-175.36947743,0.00016499,2]
[347117929,1735506643427,-200.0,0.00015718,2]
[347117930,1735506643437,-698.06052257,0.00016499,2]
[347117931,1735506643446,-500.0,0.00016499,2]
[347117932,1735506643456,-500.0,0.00016499,2]
[347117933,1735506643465,-1539.75,0.00016499,2]
[347117934,1735506643474,-500.0,0.00016499,2]
[347117935,1735506643485,-500.0,0.00016499,2]
[347117936,1735506643494,-500.0,0.00016499,2]
[347117937,1735506643503,-500.0,0.00016499,2]
[347117938,1735506643512,-548.15,0.00016499,2]
[347117939,1735506643522,-500.0,0.00016499,2]
[347117940,1735506643531,-622.35,0.00016499,2]
[347117941,1735506643542,-500.0,0.00016499,2]
[347117942,1735506643552,-500.0,0.00016499,2]
[347117943,1735506643561,-2714.68,0.00016499,2]
[347117944,1735506643571,-540.3,0.00016499,2]
[347117945,1735506643580,-687.02,0.00016499,2]
[347117946,1735506643591,-500.0,0.00016499,2]
[347117947,1735506643603,-504.48,0.00016499,2]
[347117948,1735506643612,-500.0,0.00016499,2]
[347117949,1735506643621,-909.23,0.00016499,2]
[347117950,1735506643630,-539.82,0.00016499,2]
[347117951,1735506643641,-796.05,0.00016499,2]
[347117952,1735506643651,-500.0,0.00016499,2]
[347117953,1735506643660,-500.0,0.00016499,2]
[347117954,1735506643671,-500.0,0.00016499,2]
[347117955,1735506643680,-500.0,0.00016499,2]
[347117956,1735506643690,-500.0,0.00016499,2]
[347117957,1735506643699,-500.0,0.00016499,2]
[347117958,1735506643708,-1308.71,0.00016499,2]
[347117959,1735506643718,-500.0,0.00016499,2]
[347117960,1735506643727,-500.0,0.00016499,2]
[347117962,1735506643736,-500.0,0.00016499,2]
[347117963,1735506643749,-500.0,0.00016499,2]
[347117965,1735506643759,-500.0,0.00016499,2]
[347117966,1735506643768,-565.78989984,0.00016499,2]
[347117967,1735506643776,-500.0,0.00016499,2]
[347117968,1735506643785,-500.0,0.00016499,2]
[347117969,1735506643795,-500.0,0.00016499,2]
[347117970,1735506643804,-792.78,0.00016499,2]
[347117971,1735506643813,-868.58,0.00016499,2]
[347117972,1735506643823,-26644.15373738,0.00016499,2]
[347117973,1735506643834,-1938.45550524,0.00016499,2]
[347117974,1735506643845,-241350.000005,0.00016499,2]
[347117975,1735506643860,-282.07,0.00016499,2]
[347117976,1735506643871,-463.59,0.00016499,2]
[347117977,1735506643882,-74552.24274399,0.00016499,2]
[347117978,1735506643897,-1836.16629,0.00016499,2]
[347117979,1735506643908,-679.30499915,0.00016499,2]
[347117980,1735506643919,-1132.21983791,0.00016499,2]
[347117981,1735506643931,-1263.94139394,0.00016499,2]
[347117982,1735506643942,-4713.1074,0.00016499,2]
[347117983,1735506643953,-445.10019242,0.00016499,2]
[347117984,1735506643964,-9916.6,0.00016499,2]
[347117985,1735506643976,-572.4865023,0.00016499,2]
[347117986,1735506643987,-1868.53283797,0.00016499,2]
[347117987,1735506643998,-6224.08578409,0.00016499,2]
[347117988,1735506644009,-5251.98864595,0.00016499,2]
[347117989,1735506644024,-352.94617115,0.00016499,2]
[347117990,1735506645415,-500.0,0.00016499,2]
[347117991,1735506645425,-29099.9998,0.00016499,2]
[347117992,1735506645437,-68218.200001,0.00016499,2]
[347117993,1735506645475,-3465.46992,0.00016499,2]
[347117994,1735506645551,-4507.18095193,0.00016409,2]
[347117995,1735506645589,-1851.00079146,0.00016409,2]
[347117996,1735506645602,-2997.38563374,0.00016499,2]
[347117997,1735506645613,-302.18344855,0.00016499,2]
[347117998,1735506645624,-23756.53650905,0.00016499,2]
[347117999,1735506645703,-8470.21150736,0.00016499,2]
[347118003,1735506917780,220.17,0.00010137,2]
[347118004,1735507014723,285.22477492,0.00010086,2]
[347118005,1735507163841,1100.0,0.00023,120]
[347118006,1735507192857,500.0,0.00016499,120]
[347118007,1735507193624,500.0,0.00016527,120]
[347118008,1735507193994,500.0,0.00016554,120]
[347118009,1735507194093,500.0,0.00016581,120]
[347118010,1735507194986,500.0,0.00016609,120]
[347118011,1735507195270,205.06,0.00016636,120]
[347118013,1735507561243,3968.00861137,9.8e-05,2]
[347118014,1735507696853,20124.36168735,0.00012,30]
[347118035,1735507831643,-162.75,0.0001184,2]
[347118036,1735507831652,-450.0,0.00012,2]
[347118037,1735507831662,-176.92,0.00012005,2]
[347118038,1735507831671,-548.18,0.00013007,2]
[347118039,1735507831682,-166.59,0.00013699,2]
[347118040,1735507831692,-204.22002698,0.000139,2]
[347118041,1735507831702,-500.0,0.00014,2]
[347118042,1735507831711,-204.22002696,0.000147,2]
[347118043,1735507831720,-162.75,0.000148,2]
[347118044,1735507831729,-150.0,0.00014925,2]
[347118045,1735507831738,-200.0,0.00014946,2]
[347118046,1735507831748,-200.0,0.00014954,2]
[347118047,1735507831758,-250.0,0.00014966,2]
[347118048,1735507831767,-176.92,0.00015006,2]
[347118049,1735507831776,-548.18,0.00015271,2]
[347118050,1735507831787,-302.53550779,0.00015378,2]
[347118051,1735507831797,-1009.00000099,0.00015387,2]
[347118052,1735507831807,-173.42,0.00015394,2]
[347118053,1735507831816,-246.04,0.00015462,2]
[347118054,1735507831825,-246.04,0.00015466,2]
[347118055,1735507831835,-246.04,0.0001547,2]
[347118056,1735507831843,-246.04,0.00015475,2]
[347118057,1735507831853,-246.04,0.00015479,2]
[347118058,1735507831863,-246.04,0.00015483,2]
[347118059,1735507831872,-246.04,0.00015487,2]
[347118060,1735507831883,-246.04,0.00015491,2]
[347118061,1735507831892,-300.0,0.00015491,2]
[347118062,1735507831902,-278.90379739,0.00015495,2]
[347118063,1735507831913,-514.19620261,0.00015495,2]
[347118064,1735507831922,-246.04,0.00015495,2]
[347118065,1735507831932,-246.04,0.00015499,2]
[347118066,1735507831941,-203.21979739,0.00015503,2]
[347118067,1735507831952,-42.82020261,0.00015503,2]
[347118068,1735507831962,-246.04,0.00015507,2]
[347118069,1735507831971,-246.04,0.00015511,2]
[347118070,1735507831981,-246.04,0.00015515,2]
[347118071,1735507831990,-246.04,0.00015519,2]
[347118072,1735507832000,-246.04,0.00015524,2]
[347118073,1735507832009,-246.04,0.00015528,2]
[347118074,1735507832021,-246.04,0.00015532,2]
[347118075,1735507832030,-246.04,0.00015536,2]
[347118076,1735507832040,-246.04,0.0001554,2]
[347118077,1735507832049,-172.28,0.00015565,2]
[347118078,1735507832059,-183.81,0.00015628,2]
[347118079,1735507832068,-533.40982703,0.000159,2]
[347118080,1735507832077,-3822.20305462,0.0001598,2]
[347118081,1735507832100,-1780.904326,0.0001598,2]
[347118082,1735507832111,-6537.54863871,0.0001598,2]
[347118084,1735507832123,-4442.056675,0.0001598,2]
[347118086,1735507832134,-3332.6871248,0.0001598,2]
[347118088,1735507832145,-6897.6099792,0.0001598,2]
[347118090,1735507832156,-1244.15535,0.0001598,2]
[347118093,1735507832168,-1303.491325,0.0001598,2]
[347118095,1735507832179,-380.0,0.0001598,2]
[347118097,1735507832190,-646.9888024,0.0001598,2]
[347118109,1735507832291,-983.16825038,0.0001598,2]
[347118111,1735507832302,-3234.59175643,0.0001598,2]
[347118113,1735507832313,-29044.98055588,0.0001598,2]
[347118115,1735507832322,-550.0,0.00016,2]
[347118117,1735507832332,-429.2052638,0.00016222,2]
[347118119,1735507832341,-506.934,0.0001624,2]
[347118121,1735507832350,-153.65,0.00016297,2]
[347118123,1735507832359,-3179.09087174,0.00016297,2]
[347118125,1735507832368,-845.56406389,0.000163,2]
[347118127,1735507832379,-476.79511743,0.000163,2]
[347118130,1735507832398,-6497.1886532,0.000163,2]
[347118132,1735507832410,-503.6288862,0.000163,2]
[347118134,1735507832431,-49378.49107928,0.000163,2]
[347118136,1735507832440,-3179.09087169,0.00016308,2]
[347118138,1735507832449,-3179.09087169,0.0001632,2]
[347118140,1735507832458,-2636.50341,0.0001633,2]
[347118142,1735507832468,-3179.09087169,0.00016331,2]
[347118144,1735507832477,-41878.84867039,0.0001634,2]
[347118146,1735507832486,-3179.09087169,0.00016343,2]
[347118148,1735507832495,-2008.11724262,0.00016354,2]
[347118150,1735507832507,-1170.97362907,0.00016354,2]
[347118152,1735507832516,-3179.09087169,0.00016366,2]
[347118154,1735507832525,-3179.09087169,0.00016377,2]
[347118156,1735507832534,-3179.09087169,0.00016389,2]
[347118158,1735507832544,-1000.0,0.00016397,2]
[347118160,1735507832553,-1000.0,0.00016399,2]
[347118162,1735507832562,-762.7447,0.000164,2]
[347118164,1735507832571,-2625.22109872,0.000164,2]
[347118166,1735507832584,-1855.25780128,0.000164,2]
[347118168,1735507832593,-18540.64219872,0.000164,2]
[347118292,1735507837587,-9990.1115,0.000164,2]
[347118293,1735507837598,-74259.3599999,0.000164,2]
[347118294,1735507837609,-4774.32074968,0.000164,2]
[347118295,1735507837652,-89645.70050052,0.000164,2]
[347118296,1735507837663,-1920.55029064,0.000164,2]
[347118297,1735507837674,-18600.21201665,0.000164,2]
[347118298,1735507837702,-12893.8938511,0.000164,2]
[347118299,1735507837714,-3779.0,0.000164,2]
[347118300,1735507837725,-2060.0,0.000164,2]
[347118301,1735507837737,-191850.97818698,0.000164,2]
[347118302,1735507837746,-533.40982703,0.000164,2]
[347118303,1735507837755,-31815.73543134,0.000164,2]
[347118304,1735507837764,-592.87354298,0.000164,2]
[347118305,1735507837774,-415.65813662,0.000164,2]
[347118306,1735507837783,-3179.09087169,0.000164,2]
[347118307,1735507837793,-13756.3349,0.0001642,2]
[347118308,1735507837802,-500.0,0.00016465,2]
[347118309,1735507837811,-500.0,0.00016465,2]
[347118310,1735507837820,-500.0,0.00016465,2]
[347118311,1735507837830,-500.0,0.00016465,2]
[347118312,1735507837839,-500.0,0.00016465,2]
[347118313,1735507837849,-500.0,0.00016465,2]
[347118314,1735507837858,-500.0,0.00016465,2]
[347118315,1735507837868,-500.0,0.00016465,2]
[347118316,1735507837878,-4810.0,0.00016466,2]
[347118317,1735507837887,-42900.0,0.00016466,2]
[347118318,1735507837896,-500.0,0.00016473,2]
[347118319,1735507837906,-500.0,0.00016473,2]
[347118320,1735507837916,-200.65384804,0.00016473,2]
[347118321,1735507837925,-500.0,0.00016473,2]
[347118322,1735507837935,-164.2048706,0.00016473,2]
[347118323,1735507837944,-161.99801606,0.00016473,2]
[347118324,1735507837953,-161.52711816,0.00016473,2]
[347118325,1735507837963,-165.62441676,0.00016473,2]
[347118326,1735507837972,-159.85678472,0.00016473,2]
[347118327,1735507837981,-1668.02,0.00016493,2]
[347118328,1735507837991,-500.0,0.00016496,2]
[347118329,1735507838000,-760.94,0.00016496,2]
[347118330,1735507838009,-500.0,0.00016496,2]
[347118331,1735507838020,-3990.51,0.00016496,2]
[347118332,1735507838029,-1022.68,0.00016496,2]
[347118333,1735507838038,-888.41,0.00016496,2]
[347118334,1735507838049,-631.71,0.00016496,2]
[347118335,1735507838059,-1405.74,0.00016496,2]
[347118337,1735507838069,-500.0,0.00016496,2]
[347118339,1735507838078,-500.0,0.00016496,2]
[347118341,1735507838088,-500.0,0.00016496,2]
[347118343,1735507838097,-500.0,0.00016496,2]
[347118344,1735507838107,-500.0,0.00016496,2]
[347118345,1735507838117,-500.0,0.00016496,2]
[347118347,1735507838126,-500.0,0.00016496,2]
[347118349,1735507838136,-500.0,0.00016496,2]
[347118350,1735507838145,-500.0,0.00016496,2]
[347118351,1735507838155,-500.0,0.00016496,2]
[347118352,1735507838164,-500.0,0.00016496,2]
[347118353,1735507838174,-832.99,0.00016496,2]
[347118355,1735507838183,-196.41928293,0.00016497,2]
[347118357,1735507838192,-337.25896492,0.00016497,2]
[347118358,1735507838202,-505.71574167,0.00016497,2]
[347118359,1735507838211,-502.80267018,0.00016497,2]
[347118360,1735507838220,-501.63338851,0.00016497,2]